[Event "Gaprindashvili Cup Open II Stage 2020"]
[Site "Online"]
[Date "2020.11.08"]
[Round "1.12"]
[White "Safarov, Deniel"]
[Black "Kekelidze, Mikheil"]
[Result "1-0"]
[ECO "B08"]
[WhiteElo "1720"]
[BlackElo "2388"]
[Annotator "ChessBase"]
[PlyCount "63"]
[EventDate "2020.11.04"]
[EventType "swiss"]
[SourceTitle "playchess.com"]
[Source "ChessBase"]
[SourceQuality "1"]
[TimeControl "1500+5"]

1. e4 {[%emt 0:00:02]} Nc6 {[%emt 0:00:21]} 2. Nf3 {[%emt 0:00:20]} d6 {[%emt 0:00:03]} 3. Nc3 {[%emt 0:00:21]} Nf6 {[%emt 0:00:03]} 4. d4 {[%emt 0:00:06]} g6 {[%emt 0:00:08]} 5. h3 {[%emt 0:00:18]} Bg7 {[%emt 0:00:04]} 6. Be3 {[%emt 0:00:02]} O-O {[%emt 0:00:11]} 7. Qd2 {[%emt 0:00:02]} e5 {[%emt 0:00:05]} 8. d5 {[%emt 0:00:45]} Ne7 {[%emt 0:00:14]} 9. O-O-O {[%emt 0:00:16]} Bd7 {[%emt 0:01:14]} 10. Bh6 {[%emt 0:00:59]} b5 {[%emt 0:00:11]} 11. Bxg7 {[%emt 0:00:52]} Kxg7 {[%emt 0:00:05]} 12. Bd3 {[%emt 0:00:11]} b4 {[%emt 0:03:50]} 13. Ne2 {[%emt 0:00:05]} a5 {[%emt 0:01:48]} 14. g4 {[%emt 0:00:19]} c5 {[%emt 0:04:11]} 15. Ng3 {[%emt 0:01:21]} Nc8 {[%emt 0:00:49]} 16. Rdg1 {[%emt 0:03:04]} Nb6 {[%emt 0:00:07]} 17. g5 {[%emt 0:00:35]} Ne8 {[%emt 0:01:20]} 18. Nf5+ {[%emt 0:00:12]} Kh8 {[%emt 0:02:33]} 19. h4 {[%emt 0:02:10]} c4 {[%emt 0:00:19]} 20. Be2 {[%emt 0:00:33]} gxf5 {[%emt 0:00:15]} 21. g6 {[%emt 0:00:59]} f4 {[%emt 0:01:26]} 22. h5 {[%emt 0:01:14]} c3 {[%emt 0:03:06]} 23. Qe1 {[%emt 0:01:06]} cxb2+ {[%emt 0:00:11]} 24. Kb1 {[%emt 0:00:02]} h6 {[%emt 0:01:45]} 25. Nh4 {[%emt 0:01:47]} a4 {[%emt 0:01:26]} 26. Qxb4 {[%emt 0:00:58]} a3 {[%emt 0:01:16]} 27. g7+ {[%emt 0:00:17]} Nxg7 {[%emt 0:00:07]} 28. Qxd6 {[%emt 0:00:01]} Be6 {[%emt 0:00:06]} 29. Qxe5 {[%emt 0:00:09]} f6 {[%emt 0:00:02]} 30. Qxf4 {[%emt 0:00:17]} Na4 {[%emt 0:00:03]} 31. Qxh6+ {[%emt 0:00:02]} Kg8 {[%emt 0:00:02]} 32. Qxg7# {[%emt 0:00:02]} 1-0

[Event "Gaprindashvili Cup Open II Stage 2020"]
[Site "Online"]
[Date "2020.11.08"]
[Round "1.13"]
[White "Sulashvili, Malkhaz"]
[Black "Tsanatsqenishvili, Alexandre"]
[Result "1-0"]
[ECO "D30"]
[WhiteElo "2381"]
[BlackElo "1702"]
[Annotator "ChessBase"]
[PlyCount "51"]
[EventDate "2020.11.04"]
[EventType "swiss"]
[SourceTitle "playchess.com"]
[Source "ChessBase"]
[SourceQuality "1"]
[TimeControl "1500+5"]

1. d4 {[%emt 0:00:03]} Nf6 {[%emt 0:00:05]} 2. Nf3 {[%emt 0:00:05]} d5 {[%emt 0:00:08]} 3. c4 {[%emt 0:00:05]} e6 {[%emt 0:00:04]} 4. e3 {[%emt 0:00:11]} c5 {[%emt 0:00:07]} 5. a3 {[%emt 0:00:15]} Nc6 {[%emt 0:00:04]} 6. dxc5 {[%emt 0:00:21]} Bxc5 {[%emt 0:00:02]} 7. b4 {[%emt 0:00:07]} Bd6 {[%emt 0:00:02]} 8. Bb2 {[%emt 0:00:08]} a6 {[%emt 0:00:51]} 9. Nbd2 {[%emt 0:00:14]} O-O {[%emt 0:00:16]} 10. Be2 {[%emt 0:00:17]} Ne4 {[%emt 0:01:57]} 11. O-O {[%emt 0:00:44]} Nxd2 {[%emt 0:01:39]} 12. Qxd2 {[%emt 0:00:49]} dxc4 {[%emt 0:00:04]} 13. Rfd1 {[%emt 0:00:52]} Be7 {[%emt 0:00:09]} 14. Qc3 {[%emt 0:00:10]} Bf6 {[%emt 0:00:03]} 15. Rxd8 {[%emt 0:00:15]} Bxc3 {[%emt 0:00:03]} 16. Rxf8+ {[%emt 0:00:05]} Kxf8 {[%emt 0:00:02]} 17. Bxc3 {[%emt 0:00:02]} b5 {[%emt 0:00:01]} 18. a4 {[%emt 0:00:21]} Rb8 {[%emt 0:00:04]} 19. axb5 {[%emt 0:00:05]} axb5 {[%emt 0:00:02]} 20. Nd4 {[%emt 0:00:05]} Ne7 {[%emt 0:00:07]} 21. Bf3 {[%emt 0:00:17]} e5 {[%emt 0:00:15]} 22. Nc6 {[%emt 0:00:07]} Nxc6 {[%emt 0:00:08]} 23. Bxc6 {[%emt 0:00:04]} f6 {[%emt 0:00:01]} 24. f4 {[%emt 0:00:26]} exf4 {[%emt 0:00:04]} 25. exf4 {[%emt 0:00:04]} Rb6 {[%emt 0:00:01]} 26. Bxb5 {[%emt 0:00:25]} 1-0

[Event "Gaprindashvili Cup Open II Stage 2020"]
[Site "Online"]
[Date "2020.11.08"]
[Round "1.14"]
[White "Nemsadze, Daviti"]
[Black "Akhvlediani, Irakli"]
[Result "0-1"]
[ECO "B22"]
[WhiteElo "1690"]
[BlackElo "2355"]
[Annotator "ChessBase"]
[PlyCount "62"]
[EventDate "2020.11.04"]
[EventType "swiss"]
[SourceTitle "playchess.com"]
[Source "ChessBase"]
[SourceQuality "1"]
[TimeControl "1500+5"]

1. e4 {[%emt 0:00:02]} c5 {[%emt 0:00:05]} 2. Nf3 {[%emt 0:00:03]} Nc6 {[%emt 0:00:02]} 3. c3 {[%emt 0:00:59]} d5 {[%emt 0:00:02]} 4. e5 {[%emt 0:00:38]} Bg4 {[%emt 0:00:10]} 5. Be2 {[%emt 0:01:26]} e6 {[%emt 0:00:10]} 6. d4 {[%emt 0:00:56]} Qb6 {[%emt 0:00:05]} 7. dxc5 {[%emt 0:01:11]} Bxc5 {[%emt 0:00:04]} 8. O-O {[%emt 0:00:17]} Bxf3 {[%emt 0:00:06]} 9. Bxf3 {[%emt 0:00:18]} Nxe5 {[%emt 0:00:02]} 10. b4 {[%emt 0:00:03]} Bd6 {[%emt 0:00:39]} 11. Be3 {[%emt 0:00:24]} Qc7 {[%emt 0:00:03]} 12. Be2 {[%emt 0:01:01]} Nf6 {[%emt 0:00:05]} 13. Qa4+ {[%emt 0:00:05]} Ned7 {[%emt 0:00:04]} 14. h3 {[%emt 0:00:07]} O-O {[%emt 0:00:04]} 15. Qb3 {[%emt 0:01:45]} Rfc8 {[%emt 0:00:26]} 16. Rc1 {[%emt 0:02:12]} Bh2+ {[%emt 0:00:19]} 17. Kh1 {[%emt 0:00:08]} Bf4 {[%emt 0:00:02]} 18. c4 {[%emt 0:00:32]} d4 {[%emt 0:03:19]} 19. Bxf4 {[%emt 0:01:36]} Qxf4 {[%emt 0:00:02]} 20. Rf1 {[%emt 0:00:03]} Ne5 {[%emt 0:00:10]} 21. c5 {[%emt 0:04:29]} b6 {[%emt 0:00:30]} 22. Ba6 {[%emt 0:02:10]} Rc7 {[%emt 0:00:04]} 23. Na3 {[%emt 0:00:22]} bxc5 {[%emt 0:01:07]} 24. Rac1 {[%emt 0:00:39]} Rb8 {[%emt 0:00:42]} 25. Bb5 {[%emt 0:01:54]} Ne4 {[%emt 0:01:06]} 26. Qb2 {[%emt 0:01:09]} h6 {[%emt 0:01:59]} 27. Kg1 {[%emt 0:01:12]} Nc3 {[%emt 0:00:43]} 28. Rxc3 {[%emt 0:00:43]} dxc3 {[%emt 0:00:04]} 29. Qxc3 {[%emt 0:00:01]} cxb4 {[%emt 0:00:07]} 30. Qxc7 {[%emt 0:00:14]} Nf3+ {[%emt 0:00:02]} 31. gxf3 {[%emt 0:00:03]} Qxc7 {[%emt 0:00:02]} 0-1

[Event "Gaprindashvili Cup Open II Stage 2020"]
[Site "Online"]
[Date "2020.11.08"]
[Round "1.15"]
[White "Chighladze, Iveri"]
[Black "Kachkachishvili, Lasha"]
[Result "0-1"]
[ECO "A50"]
[WhiteElo "2335"]
[BlackElo "1681"]
[Annotator "ChessBase"]
[PlyCount "84"]
[EventDate "2020.11.04"]
[EventType "swiss"]
[SourceTitle "playchess.com"]
[Source "ChessBase"]
[SourceQuality "1"]
[TimeControl "1500+5"]

1. d4 {[%emt 0:00:06]} Nf6 {[%emt 0:00:04]} 2. c4 {[%emt 0:00:02]} e6 {[%emt 0:00:08]} 3. Nc3 {[%emt 0:00:04]} b6 {[%emt 0:00:01]} 4. e4 {[%emt 0:00:05]} d6 {[%emt 0:00:26]} 5. Bg5 {[%emt 0:01:46]} Be7 {[%emt 0:00:30]} 6. Bd3 {[%emt 0:02:42]} Bb7 {[%emt 0:00:23]} 7. Nge2 {[%emt 0:00:15]} Nbd7 {[%emt 0:01:27]} 8. O-O {[%emt 0:00:16]} e5 {[%emt 0:01:19]} 9. f4 {[%emt 0:02:48]} exd4 {[%emt 0:01:51]} 10. Nxd4 {[%emt 0:00:07]} h6 {[%emt 0:01:44]} 11. Bh4 {[%emt 0:01:21]} Nc5 {[%emt 0:00:43]} 12. b4 {[%emt 0:03:10]} Nxd3 {[%emt 0:04:02]} 13. Qxd3 {[%emt 0:00:08]} c5 {[%emt 0:02:33]} 14. Nf5 {[%emt 0:03:18]} cxb4 {[%emt 0:01:40]} 15. Nb5 {[%emt 0:01:36]} Bxe4 {[%emt 0:02:16]} 16. Nbxd6+ {[%emt 0:00:58]} Kf8 {[%emt 0:00:40]} 17. Qg3 {[%emt 0:02:17]} Bxf5 {[%emt 0:01:26]} 18. Nxf5 {[%emt 0:00:05]} g6 {[%emt 0:01:51]} 19. Rad1 {[%emt 0:00:16]} Qe8 {[%emt 0:00:10]} 20. Nxe7 {[%emt 0:02:49]} Qxe7 {[%emt 0:00:04]} 21. Rfe1 {[%emt 0:00:55]} Qc5+ {[%emt 0:00:03]} 22. Qe3 {[%emt 0:00:45]} Qxe3+ {[%emt 0:00:28]} 23. Rxe3 {[%emt 0:00:02]} Kg7 {[%emt 0:00:01]} 24. Rd6 {[%emt 0:00:04]} Ng4 {[%emt 0:00:39]} 25. Rg3 {[%emt 0:00:05]} h5 {[%emt 0:00:32]} 26. h3 {[%emt 0:00:02]} Nh6 {[%emt 0:00:02]} 27. Bf6+ {[%emt 0:00:03]} Kh7 {[%emt 0:00:02]} 28. Bxh8 {[%emt 0:00:49]} Nf5 {[%emt 0:00:13]} 29. Rgd3 {[%emt 0:00:08]} Nxd6 {[%emt 0:00:04]} 30. Rxd6 {[%emt 0:00:02]} Kxh8 {[%emt 0:00:03]} 31. Rd7 {[%emt 0:00:02]} Kg7 {[%emt 0:00:03]} 32. g4 {[%emt 0:00:01]} hxg4 {[%emt 0:00:03]} 33. hxg4 {[%emt 0:00:02]} Rc8 {[%emt 0:00:09]} 34. Rd4 {[%emt 0:00:07]} a5 {[%emt 0:00:17]} 35. Kf2 {[%emt 0:00:02]} a4 {[%emt 0:00:05]} 36. Ke3 {[%emt 0:00:05]} Rh8 {[%emt 0:00:07]} 37. Rd6 {[%emt 0:00:07]} Rh3+ {[%emt 0:00:23]} 38. Kd4 {[%emt 0:00:15]} b3 {[%emt 0:00:03]} 39. axb3 {[%emt 0:00:04]} Rxb3 {[%emt 0:00:02]} 40. g5 {[%emt 0:00:12]} Rb1 {[%emt 0:00:30]} 41. Ke5 {[%emt 0:00:09]} Re1+ {[%emt 0:00:08]} 42. Kd5 {[%emt 0:00:02]} Rd1+ {[%emt 0:00:05]} 0-1

[Event "Gaprindashvili Cup Open II Stage 2020"]
[Site "Online"]
[Date "2020.11.08"]
[Round "1.16"]
[White "Kupatadze, Tornike"]
[Black "Morchiashvili, Bachana"]
[Result "0-1"]
[ECO "B21"]
[WhiteElo "1657"]
[BlackElo "2313"]
[Annotator "ChessBase"]
[PlyCount "50"]
[EventDate "2020.11.04"]
[EventType "swiss"]
[SourceTitle "playchess.com"]
[Source "ChessBase"]
[SourceQuality "1"]
[TimeControl "1500+5"]

1. e4 {[%emt 0:00:00]} c5 {[%emt 0:00:03]} 2. d4 {[%emt 0:00:05]} cxd4 {[%emt 0:00:04]} 3. c3 {[%emt 0:00:04]} dxc3 {[%emt 0:00:26]} 4. Nxc3 {[%emt 0:00:03]} Nc6 {[%emt 0:00:01]} 5. Bc4 {[%emt 0:00:02]} d6 {[%emt 0:00:06]} 6. Nf3 {[%emt 0:00:02]} a6 {[%emt 0:00:02]} 7. Bg5 {[%emt 0:00:39]} Nf6 {[%emt 0:00:28]} 8. Qb3 {[%emt 0:06:47]} e6 {[%emt 0:00:07]} 9. e5 {[%emt 0:01:26]} dxe5 {[%emt 0:00:58]} 10. Rd1 {[%emt 0:00:07]} Qc7 {[%emt 0:01:11]} 11. Bxf6 {[%emt 0:01:10]} gxf6 {[%emt 0:00:03]} 12. Ne4 {[%emt 0:00:02]} Bb4+ {[%emt 0:01:49]} 13. Ke2 {[%emt 0:01:07]} Be7 {[%emt 0:00:26]} 14. Rd2 {[%emt 0:00:22]} Na5 {[%emt 0:00:27]} 15. Qa4+ {[%emt 0:00:09]} b5 {[%emt 0:00:09]} 16. Bxb5+ {[%emt 0:00:02]} axb5 {[%emt 0:00:03]} 17. Qxb5+ {[%emt 0:00:01]} Qc6 {[%emt 0:01:56]} 18. Qxc6+ {[%emt 0:02:21]} Nxc6 {[%emt 0:00:04]} 19. Nd6+ {[%emt 0:00:03]} Bxd6 {[%emt 0:00:07]} 20. Rxd6 {[%emt 0:00:02]} Ba6+ {[%emt 0:00:06]} 21. Ke3 {[%emt 0:00:06]} Nb4 {[%emt 0:00:06]} 22. Rc1 {[%emt 0:00:18]} Nd5+ {[%emt 0:00:20]} 23. Kd2 {[%emt 0:00:10]} Ke7 {[%emt 0:00:10]} 24. Rdc6 {[%emt 0:00:08]} Rhd8 {[%emt 0:00:05]} 25. Ke1 {[%emt 0:00:06]} Nf4 {[%emt 0:00:07]} 0-1

[Event "Gaprindashvili Cup Open II Stage 2020"]
[Site "Online"]
[Date "2020.11.08"]
[Round "1.17"]
[White "Lomsadze, Davit"]
[Black "Tsanatsqenishvili, Giorgi"]
[Result "1-0"]
[ECO "E67"]
[WhiteElo "2303"]
[BlackElo "1631"]
[Annotator "ChessBase"]
[PlyCount "91"]
[EventDate "2020.11.04"]
[EventType "swiss"]
[SourceTitle "playchess.com"]
[Source "ChessBase"]
[SourceQuality "1"]
[TimeControl "1500+5"]

1. Nf3 {[%emt 0:00:04]} Nf6 {[%emt 0:00:19]} 2. g3 {[%emt 0:00:04]} g6 {[%emt 0:00:02]} 3. Bg2 {[%emt 0:00:02]} Bg7 {[%emt 0:00:01]} 4. O-O {[%emt 0:00:03]} O-O {[%emt 0:00:02]} 5. d4 {[%emt 0:00:04]} d6 {[%emt 0:00:02]} 6. c4 {[%emt 0:00:05]} Nbd7 {[%emt 0:00:10]} 7. Nc3 {[%emt 0:00:03]} e5 {[%emt 0:00:08]} 8. h3 {[%emt 0:00:10]} h6 {[%emt 0:00:05]} 9. e4 {[%emt 0:00:04]} Re8 {[%emt 0:00:03]} 10. d5 {[%emt 0:00:03]} Rf8 {[%emt 0:00:08]} 11. Ne1 {[%emt 0:00:06]} Nh5 {[%emt 0:00:05]} 12. Nd3 {[%emt 0:00:07]} Nc5 {[%emt 0:00:21]} 13. Nxc5 {[%emt 0:00:17]} dxc5 {[%emt 0:00:01]} 14. Kh2 {[%emt 0:00:02]} a6 {[%emt 0:00:47]} 15. a3 {[%emt 0:00:12]} Qe7 {[%emt 0:00:33]} 16. Be3 {[%emt 0:00:11]} Bd7 {[%emt 0:00:19]} 17. Qd2 {[%emt 0:00:28]} Kh7 {[%emt 0:00:05]} 18. b4 {[%emt 0:00:04]} cxb4 {[%emt 0:00:40]} 19. axb4 {[%emt 0:00:06]} Qxb4 {[%emt 0:00:04]} 20. Rfb1 {[%emt 0:00:17]} Qe7 {[%emt 0:00:33]} 21. Rxb7 {[%emt 0:00:07]} Bc8 {[%emt 0:00:07]} 22. Rbb1 {[%emt 0:00:22]} f5 {[%emt 0:00:15]} 23. exf5 {[%emt 0:00:22]} Bxf5 {[%emt 0:00:03]} 24. Ne4 {[%emt 0:00:30]} Rfd8 {[%emt 0:01:49]} 25. Rb7 {[%emt 0:00:46]} Bc8 {[%emt 0:01:35]} 26. d6 {[%emt 0:00:16]} Bxb7 {[%emt 0:00:19]} 27. dxe7 {[%emt 0:00:05]} Rxd2 {[%emt 0:00:02]} 28. Bxd2 {[%emt 0:00:42]} Re8 {[%emt 0:00:47]} 29. Ng5+ {[%emt 0:00:48]} hxg5 {[%emt 0:00:21]} 30. Bxb7 {[%emt 0:00:03]} Rxe7 {[%emt 0:00:11]} 31. Rxa6 {[%emt 0:00:09]} Rf7 {[%emt 0:02:02]} 32. Kg2 {[%emt 0:00:16]} Bf6 {[%emt 0:03:58]} 33. Bd5 {[%emt 0:00:10]} Rd7 {[%emt 0:00:53]} 34. g4 {[%emt 0:00:23]} Rd6 {[%emt 0:01:32]} 35. Rxd6 {[%emt 0:00:06]} cxd6 {[%emt 0:00:02]} 36. gxh5 {[%emt 0:00:01]} gxh5 {[%emt 0:00:01]} 37. Bf7 {[%emt 0:00:03]} Kh6 {[%emt 0:00:17]} 38. Kf3 {[%emt 0:00:04]} h4 {[%emt 0:00:05]} 39. Kg4 {[%emt 0:00:03]} Kg7 {[%emt 0:00:05]} 40. Bd5 {[%emt 0:00:03]} Kh6 {[%emt 0:00:01]} 41. Kf5 {[%emt 0:00:03]} Bd8 {[%emt 0:00:06]} 42. Ke6 {[%emt 0:00:01]} Bc7 {[%emt 0:00:02]} 43. Be4 {[%emt 0:00:07]} Kh5 {[%emt 0:00:06]} 44. Bf5 {[%emt 0:00:02]} Kh6 {[%emt 0:00:05]} 45. Kd7 {[%emt 0:00:10]} Bb8 {[%emt 0:00:03]} 46. Bb4 {[%emt 0:00:07]} 1-0

[Event "Gaprindashvili Cup Open II Stage 2020"]
[Site "Online"]
[Date "2020.11.08"]
[Round "1.18"]
[White "Gogolashvili, Giorgi"]
[Black "Patsia, Zviad"]
[Result "0-1"]
[ECO "B02"]
[WhiteElo "1448"]
[BlackElo "2204"]
[Annotator "ChessBase"]
[PlyCount "82"]
[EventDate "2020.11.04"]
[EventType "swiss"]
[SourceTitle "playchess.com"]
[Source "ChessBase"]
[SourceQuality "1"]
[TimeControl "1500+5"]

1. e4 {[%emt 0:00:05]} Nf6 {[%emt 0:00:27]} 2. Nc3 {[%emt 0:00:08]} d5 {[%emt 0:00:12]} 3. exd5 {[%emt 0:00:03]} Nxd5 {[%emt 0:00:02]} 4. Bc4 {[%emt 0:00:02]} c6 {[%emt 0:00:44]} 5. d4 {[%emt 0:00:24]} Bf5 {[%emt 0:00:20]} 6. Nf3 {[%emt 0:00:11]} e6 {[%emt 0:00:02]} 7. O-O {[%emt 0:00:02]} Be7 {[%emt 0:00:11]} 8. Nxd5 {[%emt 0:00:08]} cxd5 {[%emt 0:00:20]} 9. Bd3 {[%emt 0:00:05]} Bg4 {[%emt 0:00:22]} 10. h3 {[%emt 0:00:11]} Bh5 {[%emt 0:00:04]} 11. c3 {[%emt 0:00:13]} Nc6 {[%emt 0:00:15]} 12. Qb3 {[%emt 0:02:35]} Qc7 {[%emt 0:00:44]} 13. Ne5 {[%emt 0:01:27]} Nxe5 {[%emt 0:00:11]} 14. dxe5 {[%emt 0:00:03]} O-O {[%emt 0:00:18]} 15. Bf4 {[%emt 0:00:27]} Bg6 {[%emt 0:00:49]} 16. Bxg6 {[%emt 0:00:36]} hxg6 {[%emt 0:00:08]} 17. Rac1 {[%emt 0:00:16]} Rfc8 {[%emt 0:00:05]} 18. Rfd1 {[%emt 0:01:59]} Rab8 {[%emt 0:01:15]} 19. Qc2 {[%emt 0:01:23]} b5 {[%emt 0:00:22]} 20. Qd3 {[%emt 0:00:43]} a5 {[%emt 0:00:15]} 21. Qg3 {[%emt 0:00:49]} Qc4 {[%emt 0:00:55]} 22. b3 {[%emt 0:00:57]} Qc7 {[%emt 0:00:28]} 23. h4 {[%emt 0:00:32]} a4 {[%emt 0:01:39]} 24. h5 {[%emt 0:00:33]} gxh5 {[%emt 0:00:12]} 25. Qh3 {[%emt 0:00:53]} g6 {[%emt 0:01:35]} 26. g4 {[%emt 0:00:48]} hxg4 {[%emt 0:00:38]} 27. Qxg4 {[%emt 0:00:04]} Kg7 {[%emt 0:00:03]} 28. Rd3 {[%emt 0:03:12]} axb3 {[%emt 0:00:29]} 29. axb3 {[%emt 0:00:05]} Rh8 {[%emt 0:00:15]} 30. Re1 {[%emt 0:02:51]} Rh4 {[%emt 0:00:14]} 31. Qg3 {[%emt 0:00:51]} Rbh8 {[%emt 0:00:14]} 32. Kg2 {[%emt 0:00:10]} R8h5 {[%emt 0:02:35]} 33. Rdd1 {[%emt 0:03:30]} Qc6 {[%emt 0:01:00]} 34. Qf3 {[%emt 0:00:42]} Rf5 {[%emt 0:00:09]} 35. Rd4 {[%emt 0:00:42]} g5 {[%emt 0:00:43]} 36. Qg3 {[%emt 0:00:05]} Rfxf4 {[%emt 0:00:08]} 37. Rxf4 {[%emt 0:00:09]} Rxf4 {[%emt 0:00:04]} 38. Rh1 {[%emt 0:00:03]} d4+ {[%emt 0:00:06]} 39. f3 {[%emt 0:00:03]} Qxc3 {[%emt 0:00:10]} 40. Rh5 {[%emt 0:00:13]} Qc2+ {[%emt 0:00:11]} 41. Kh3 {[%emt 0:00:06]} Qg6 {[%emt 0:00:08]} 0-1

[Event "Gaprindashvili Cup Open II Stage 2020"]
[Site "Online"]
[Date "2020.11.08"]
[Round "2.2"]
[White "Paichadze, Luka"]
[Black "Lomsadze, Davit"]
[Result "1-0"]
[ECO "C47"]
[WhiteElo "2565"]
[BlackElo "2303"]
[Annotator "ChessBase"]
[PlyCount "95"]
[EventDate "2020.11.04"]
[EventType "swiss"]
[SourceTitle "playchess.com"]
[Source "ChessBase"]
[SourceQuality "1"]
[TimeControl "1500+5"]

1. e4 {[%emt 0:00:04]} e5 {[%emt 0:00:11]} 2. Nc3 {[%emt 0:00:04]} Nf6 {[%emt 0:00:08]} 3. g3 {[%emt 0:00:03]} d5 {[%emt 0:00:08]} 4. exd5 {[%emt 0:00:02]} Nxd5 {[%emt 0:00:02]} 5. Bg2 {[%emt 0:00:01]} Nxc3 {[%emt 0:00:02]} 6. bxc3 {[%emt 0:00:02]} Bd6 {[%emt 0:00:02]} 7. d3 {[%emt 0:00:09]} O-O {[%emt 0:00:02]} 8. Nf3 {[%emt 0:00:02]} Nc6 {[%emt 0:01:19]} 9. O-O {[%emt 0:00:04]} Bg4 {[%emt 0:00:12]} 10. h3 {[%emt 0:00:36]} Bh5 {[%emt 0:00:04]} 11. Qe1 {[%emt 0:00:32]} f5 {[%emt 0:00:29]} 12. Nd2 {[%emt 0:00:18]} f4 {[%emt 0:00:20]} 13. g4 {[%emt 0:00:13]} Bf7 {[%emt 0:00:09]} 14. Qe2 {[%emt 0:00:54]} Qd7 {[%emt 0:00:17]} 15. a4 {[%emt 0:00:07]} b6 {[%emt 0:03:10]} 16. Bb2 {[%emt 0:00:15]} Rae8 {[%emt 0:00:07]} 17. c4 {[%emt 0:00:16]} Ne7 {[%emt 0:02:12]} 18. Nf3 {[%emt 0:00:28]} Ng6 {[%emt 0:00:30]} 19. a5 {[%emt 0:00:12]} Qe7 {[%emt 0:01:46]} 20. axb6 {[%emt 0:00:08]} axb6 {[%emt 0:00:04]} 21. Rfe1 {[%emt 0:01:11]} Nh4 {[%emt 0:00:31]} 22. Nxh4 {[%emt 0:00:08]} Qxh4 {[%emt 0:00:05]} 23. Ba3 {[%emt 0:01:12]} h5 {[%emt 0:00:43]} 24. Bxd6 {[%emt 0:00:06]} cxd6 {[%emt 0:00:03]} 25. Rab1 {[%emt 0:02:44]} Be6 {[%emt 0:01:14]} 26. f3 {[%emt 0:00:34]} hxg4 {[%emt 0:01:05]} 27. hxg4 {[%emt 0:00:03]} Rb8 {[%emt 0:00:14]} 28. Qf2 {[%emt 0:00:05]} Qd8 {[%emt 0:00:52]} 29. Rb2 {[%emt 0:00:05]} Rf7 {[%emt 0:00:06]} 30. Reb1 {[%emt 0:00:05]} Rfb7 {[%emt 0:00:04]} 31. Bf1 {[%emt 0:00:10]} Qc7 {[%emt 0:00:18]} 32. c3 {[%emt 0:00:06]} g5 {[%emt 0:01:20]} 33. Rb4 {[%emt 0:00:42]} Kg7 {[%emt 0:01:05]} 34. d4 {[%emt 0:01:31]} Bf7 {[%emt 0:00:29]} 35. Bd3 {[%emt 0:00:19]} d5 {[%emt 0:00:49]} 36. dxe5 {[%emt 0:02:02]} Qxe5 {[%emt 0:00:16]} 37. cxd5 {[%emt 0:00:04]} Qxc3 {[%emt 0:00:37]} 38. Be4 {[%emt 0:00:03]} Rd7 {[%emt 0:00:50]} 39. R4b3 {[%emt 0:00:48]} Qf6 {[%emt 0:01:05]} 40. Rxb6 {[%emt 0:00:51]} Rxb6 {[%emt 0:00:04]} 41. Rxb6 {[%emt 0:00:02]} Rd6 {[%emt 0:00:25]} 42. Rb7 {[%emt 0:01:26]} Qa1+ {[%emt 0:00:17]} 43. Kg2 {[%emt 0:01:32]} Kf6 {[%emt 0:00:50]} 44. Qc5 {[%emt 0:01:25]} Qa2+ {[%emt 0:01:58]} 45. Kg1 {[%emt 0:00:32]} Qa1+ {[%emt 0:00:05]} 46. Kg2 {[%emt 0:00:49]} Qa2+ {[%emt 0:00:05]} 47. Kh3 {[%emt 0:00:12]} Rxd5 {[%emt 0:02:01]} 48. Qe7+ {[%emt 0:00:10]} 1-0

[Event "Gaprindashvili Cup Open II Stage 2020"]
[Site "Online"]
[Date "2020.11.08"]
[Round "2.3"]
[White "Patsia, Zviad"]
[Black "Jojua, Davit"]
[Result "0-1"]
[ECO "B42"]
[WhiteElo "2204"]
[BlackElo "2557"]
[Annotator "ChessBase"]
[PlyCount "74"]
[EventDate "2020.11.04"]
[EventType "swiss"]
[SourceTitle "playchess.com"]
[Source "ChessBase"]
[SourceQuality "1"]
[TimeControl "1500+5"]

1. e4 {[%emt 0:00:00]} c5 {[%emt 0:00:06]} 2. Nf3 {[%emt 0:00:03]} e6 {[%emt 0:00:09]} 3. d4 {[%emt 0:00:02]} cxd4 {[%emt 0:00:02]} 4. Nxd4 {[%emt 0:00:01]} a6 {[%emt 0:00:02]} 5. Bd3 {[%emt 0:00:02]} Nf6 {[%emt 0:00:03]} 6. O-O {[%emt 0:00:17]} e5 {[%emt 0:00:03]} 7. Bg5 {[%emt 0:00:07]} d6 {[%emt 0:00:31]} 8. Ne2 {[%emt 0:02:01]} Be7 {[%emt 0:00:21]} 9. c4 {[%emt 0:00:14]} Be6 {[%emt 0:00:53]} 10. Nbc3 {[%emt 0:00:04]} Nc6 {[%emt 0:00:34]} 11. Bxf6 {[%emt 0:00:19]} Bxf6 {[%emt 0:00:03]} 12. Nd5 {[%emt 0:00:01]} Bg5 {[%emt 0:00:51]} 13. b4 {[%emt 0:02:17]} O-O {[%emt 0:00:24]} 14. b5 {[%emt 0:00:44]} axb5 {[%emt 0:01:44]} 15. cxb5 {[%emt 0:00:04]} Bxd5 {[%emt 0:00:01]} 16. exd5 {[%emt 0:00:06]} Ne7 {[%emt 0:00:06]} 17. Qb3 {[%emt 0:01:21]} Qb6 {[%emt 0:00:30]} 18. Kh1 {[%emt 0:01:08]} f5 {[%emt 0:01:38]} 19. f4 {[%emt 0:00:14]} Bf6 {[%emt 0:00:03]} 20. fxe5 {[%emt 0:00:03]} Bxe5 {[%emt 0:00:02]} 21. Rac1 {[%emt 0:00:35]} g6 {[%emt 0:02:22]} 22. Nf4 {[%emt 0:01:44]} Rfc8 {[%emt 0:00:07]} 23. Ne6 {[%emt 0:00:26]} Rxc1 {[%emt 0:00:37]} 24. Rxc1 {[%emt 0:00:05]} Qe3 {[%emt 0:00:05]} 25. Rd1 {[%emt 0:03:29]} Qf2 {[%emt 0:02:24]} 26. Bb1 {[%emt 0:03:29]} Rc8 {[%emt 0:01:50]} 27. Qf3 {[%emt 0:01:18]} Qh4 {[%emt 0:03:24]} 28. g3 {[%emt 0:01:20]} Qa4 {[%emt 0:00:06]} 29. Qe2 {[%emt 0:00:51]} Nxd5 {[%emt 0:01:14]} 30. Rxd5 {[%emt 0:02:37]} Rc1+ {[%emt 0:00:04]} 31. Kg2 {[%emt 0:00:01]} Rxb1 {[%emt 0:00:02]} 32. Nd4 {[%emt 0:01:28]} Qd1 {[%emt 0:02:50]} 33. Rxe5 {[%emt 0:00:03]} dxe5 {[%emt 0:00:10]} 34. Qc4+ {[%emt 0:00:03]} Kg7 {[%emt 0:00:02]} 35. Qc7+ {[%emt 0:00:02]} Kh6 {[%emt 0:00:03]} 36. Nxf5+ {[%emt 0:00:02]} gxf5 {[%emt 0:00:09]} 37. Qb6+ {[%emt 0:00:02]} Kh5 {[%emt 0:00:13]} 0-1